bitfinex/quotes_ETHUSD_20260310
["timestamp","ask_amount","ask_price","bid_price","bid_amount"]
[1773158822366,0.92718336,2071.7,2071.3,0.001]
[1773158822591,0.92718336,2071.6,2071.3,0.001]
[1773158824412,1.20685493,2071.5,2071.3,0.001]
[1773158824581,2.13403829,2071.5,2071.0,0.001]
[1773158824779,1.20685493,2071.5,2071.0,0.001]
[1773158825430,1.20673842,2071.7,2071.0,0.001]
[1773158825990,1.20673842,2071.7,2071.5,0.001]
[1773158826705,2.13392178,2071.7,2071.3,0.001]
[1773158828333,1.20673842,2071.7,2071.3,0.001]
[1773158829015,0.002,2072.1,2071.3,0.85228419]
[1773158829016,1.20855269,2072.1,2071.3,0.85228419]
[1773158830401,0.002,2072.1,2071.4,2.05819738]
[1773158830628,0.002,2072.1,2071.5,0.85128419]
[1773158831911,0.002,2072.3,2071.5,2.33058596]
[1773158832226,1.53455301,2072.6,2071.9,0.85128419]
[1773158832599,0.32833342,2072.6,2072.0,0.85128419]
[1773158833030,0.32833342,2072.6,2072.2,0.85128419]
[1773158833801,1.53457979,2072.6,2072.0,0.85128419]
[1773158834033,2.46176315,2072.6,2071.7,3.17600908]
[1773158834201,2.46176315,2072.6,2071.7,1.96928419]
[1773158834734,2.46176315,2072.6,2071.5,0.85128419]
[1773158834735,0.92718336,2072.5,2071.5,0.85128419]
[1773158835134,1.96118336,2072.5,2071.5,0.85128419]
[1773158835313,1.53457979,2072.6,2071.5,0.85128419]
[1773158836120,2.46176315,2072.6,2071.5,0.85128419]
[1773158836503,2.46176315,2072.6,2071.6,0.85128419]
[1773158836734,0.92718336,2072.4,2071.3,0.85228419]
[1773158836905,0.92718336,2072.0,2071.3,0.001]
[1773158837107,0.92718336,2072.1,2071.3,0.001]
[1773158837540,1.96218336,2072.0,2071.3,0.001]
[1773158837745,0.92718336,2071.9,2071.3,0.001]
[1773158838105,2.33058596,2072.4,2071.3,0.001]
[1773158838106,0.92718336,2072.2,2071.3,0.001]
[1773158838335,1.035,2072.0,2071.3,0.001]
[1773158838844,1.20662194,2071.9,2071.3,0.001]
[1773158839340,1.035,2072.3,2071.5,0.8984442]
[1773158840441,0.002,2072.4,2071.5,0.8984442]
[1773158840810,0.002,2072.4,2071.6,1.20679667]
[1773158841159,0.002,2072.4,2071.7,0.8974442]
[1773158841446,0.002,2072.4,2071.8,0.8974442]
[1773158841647,1.53457276,2072.6,2072.1,0.8974442]
[1773158841648,1.5345609,2072.6,2072.1,0.8974442]
[1773158842009,1.53454829,2072.6,2072.1,0.8974442]
[1773158842209,0.32833342,2072.6,2072.1,0.8974442]
[1773158842411,1.20807246,2072.9,2072.1,0.8974442]
[1773158842917,0.002,2072.9,2072.2,1.20644725]
[1773158843943,0.002,2072.9,2072.1,2.10390336]
[1773158844349,0.002,2072.9,2072.2,0.8974442]
[1773158844915,0.002,2072.9,2072.3,1.20638903]
[1773158845243,0.002,2072.9,2072.2,2.10384642]
[1773158845409,0.84306144,2072.9,2071.6,2.1042243]
[1773158845736,0.84306144,2072.9,2071.6,0.8974442]
[1773158845737,0.84106144,2072.7,2071.6,0.8974442]
[1773158846034,0.84106144,2072.7,2071.6,2.10423397]
[1773158846235,1.87706144,2072.6,2071.6,2.10423397]
[1773158846443,0.84106144,2072.5,2071.5,1.20780784]
[1773158846807,0.84106144,2072.5,2071.5,0.001]
[1773158846808,0.84106144,2072.4,2071.5,0.001]
[1773158847040,1.20638903,2072.3,2071.5,0.001]
[1773158849141,0.84106144,2072.2,2071.5,0.001]
[1773158849338,0.84106144,2072.0,2071.3,0.001]
[1773158850046,2.04745047,2072.3,2071.3,2.10541371]
[1773158850218,2.04745047,2072.3,2071.4,0.04827652]
[1773158850418,2.04745047,2072.3,2071.4,0.94572072]
[1773158850650,3.08445047,2072.3,2071.4,0.94572072]
[1773158850854,0.84106144,2072.2,2071.3,0.001]
[1773158851622,0.84106144,2072.0,2071.3,0.001]
[1773158852275,0.84106144,2072.0,2071.7,0.001]
[1773158853432,0.84106144,2072.0,2071.3,0.001]
[1773158853724,0.84106144,2071.8,2071.3,0.001]
[1773158854045,1.87806144,2071.7,2071.3,0.001]
[1773158854622,2.24362194,2071.9,2071.3,0.001]
[1773158854856,1.20662194,2071.9,2071.3,0.8984442]
[1773158855759,1.20662194,2071.9,2071.3,2.10537164]
[1773158855933,1.20662194,2071.9,2071.3,0.001]
[1773158856624,2.04768338,2071.9,2071.3,0.001]
[1773158856824,0.84106144,2071.8,2071.3,0.001]
[1773158857219,1.2065958,2072.0,2071.4,0.8974442]
[1773158857652,0.002,2072.1,2071.5,1.20685493]
[1773158857827,0.002,2072.1,2071.4,2.10431145]
[1773158858024,0.002,2072.1,2071.3,0.001]
[1773158858250,0.002,2072.1,2071.3,2.10539974]
[1773158858827,0.002,2072.1,2071.3,0.8984442]
[1773158859027,0.002,2072.1,2071.3,2.10541161]
[1773158859856,0.84306144,2072.1,2071.3,0.001]
[1773158860064,0.84306144,2072.1,2071.0,0.8984442]
[1773158860065,3.5489126,2071.9,2071.0,0.001]
[1773158860231,0.84106144,2071.8,2071.0,0.001]
[1773158860432,1.88006144,2071.7,2071.0,0.001]
[1773158861461,1.88006144,2071.8,2071.0,0.001]
[1773158861645,0.84106144,2071.7,2071.0,0.001]
[1773158861845,1.20679667,2071.6,2071.0,0.001]
[1773158863331,4.82685486,2071.8,2071.0,0.8984442]
[1773158863865,2.2485637,2072.1,2071.2,0.8974442]
[1773158864058,4.82648776,2072.0,2071.2,0.8974442]
[1773158864562,5.86648776,2072.0,2071.2,0.8974442]
[1773158864963,6.7075492,2072.0,2071.2,0.8974442]
[1773158865161,0.84106144,2071.9,2071.0,1.20810366]
[1773158865468,0.84106144,2071.9,2071.0,2.10554786]
[1773158865780,0.84106144,2071.9,2071.0,0.001]
[1773158865949,1.20668018,2071.8,2071.0,0.001]
[1773158866288,2.04774162,2071.8,2071.2,0.001]
[1773158866472,2.04774162,2071.8,2071.0,0.001]
[1773158866473,0.84106144,2071.7,2071.0,0.001]
[1773158866639,0.84106144,2071.7,2070.5,0.001]
[1773158866640,0.87831765,2071.6,2070.5,1.20841167]
[1773158866980,0.87831765,2071.6,2070.7,0.001]
[1773158867941,2.08517258,2071.5,2070.7,0.001]
[1773158868458,1.042,2071.4,2070.7,0.001]
[1773158868633,0.87831765,2071.3,2070.7,0.001]
[1773158869964,1.043,2071.4,2070.8,1.20726289]
[1773158870167,1.043,2071.5,2070.8,2.09296802]
[1773158870367,2.067813,2071.7,2070.8,2.09296802]
[1773158870537,3.110813,2071.7,2070.8,2.09296802]
[1773158871052,2.24977127,2071.7,2070.9,0.88570513]
[1773158871255,3.80246605,2071.8,2070.9,0.88570513]
[1773158871462,4.84546605,2071.8,2070.9,0.88570513]
[1773158871974,4.84546605,2071.8,2071.0,1.2071463]
[1773158872861,2.25069392,2071.8,2071.1,0.88570513]
[1773158873165,2.25063997,2071.9,2071.1,0.88570513]
[1773158873808,1.20857123,2072.0,2071.1,0.88570513]
[1773158874066,2.25257123,2072.0,2071.2,2.09273487]
[1773158875466,2.25357123,2072.0,2071.2,2.09273487]
[1773158876571,0.002,2072.0,2071.3,0.88570513]
[1773158876775,1.20856987,2072.0,2071.3,0.88570513]
[1773158877862,0.002,2072.0,2071.3,0.88570513]
[1773158878046,1.20856809,2072.0,2071.3,0.88570513]
[1773158878648,0.002,2072.0,2071.4,2.09261832]
[1773158878849,0.002,2072.0,2071.5,0.88570513]
[1773158879469,0.002,2071.8,2071.5,0.88570513]
[1773158880859,0.86304173,2071.8,2071.2,0.001]
[1773158881054,0.002,2071.8,2071.3,0.88570513]
[1773158882773,0.002,2072.0,2071.5,0.88570513]
[1773158883086,0.002,2072.3,2071.8,0.88570513]
[1773158883381,0.002,2072.5,2071.8,0.88570513]
[1773158883751,0.002,2072.5,2071.4,1.20691319]
[1773158883752,0.86104173,2072.4,2071.5,0.88570513]
[1773158883955,0.86104173,2072.4,2071.4,1.20691319]
[1773158884894,0.86104173,2072.4,2071.5,0.88570513]
[1773158884895,2.06737514,2072.4,2071.5,0.88570513]
[1773158885462,0.86104173,2072.3,2071.5,0.88570513]
[1773158886490,0.002,2072.5,2071.8,2.33088998]
[1773158886706,0.002,2072.5,2071.9,0.88570513]
[1773158886909,0.002,2072.5,2072.0,1.2065637]
[1773158887776,0.002,2072.5,2072.1,0.88570513]
[1773158887976,0.002,2072.9,2072.5,0.88570513]
[1773158888301,0.002,2073.1,2072.5,0.88570513]
[1773158888963,0.002,2073.1,2072.6,1.20621441]
[1773158889397,0.002,2073.1,2072.7,0.88570513]
[1773158889903,0.002,2073.6,2072.7,0.88570513]
[1773158891397,0.002,2073.6,2072.8,2.09180316]
[1773158892467,0.002,2073.6,2072.9,0.88570513]
[1773158892877,0.002,2073.6,2073.1,0.88570513]
[1773158893080,2.06648979,2074.0,2073.0,3.21659511]
[1773158893278,1.20544806,2074.0,2073.2,0.88570513]
[1773158893481,1.20540255,2074.0,2073.2,0.88570513]
[1773158893838,0.32718943,2074.1,2073.1,1.20592349]
[1773158893839,2.39359008,2074.1,2073.1,3.21262862]
[1773158894030,0.86104173,2074.0,2073.1,3.21262862]
[1773158894179,1.53254835,2074.1,2073.2,0.88570513]
[1773158894806,2.39359008,2074.1,2073.2,0.88570513]
[1773158895422,0.002,2073.3,2073.2,2.09155929]
[1773158895618,0.002,2073.6,2073.2,2.09155929]
[1773158895908,2.39359008,2074.1,2073.3,0.88570513]
[1773158896209,2.39359008,2074.1,2073.2,1.20585416]
[1773158896590,0.86104173,2074.0,2073.2,1.20585416]
[1773158896907,0.86104173,2073.9,2073.1,2.32691486]
[1773158897379,0.86104173,2073.7,2072.7,2.09181699]
[1773158898482,1.91004173,2073.7,2072.7,2.09181699]
[1773158898896,0.86104173,2073.6,2072.7,2.09181699]
[1773158899096,0.86104173,2073.6,2072.7,0.88570513]
[1773158899315,1.049,2073.7,2072.6,1.122]
[1773158899316,0.84948765,2073.3,2072.6,1.122]
[1773158899522,0.84948765,2073.3,2072.4,2.06704379]
[1773158899821,0.84948765,2073.3,2072.5,0.0482509]
[1773158900388,0.84948765,2073.3,2072.1,0.86071559]
[1773158900591,0.84948765,2073.1,2072.2,0.04825789]
[1773158900808,1.049,2073.0,2072.0,0.86071559]
[1773158901012,1.89848765,2073.1,2072.1,0.04826021]
[1773158901714,1.20588703,2073.2,2072.3,0.86071559]
[1773158901903,1.20588703,2073.2,2072.4,0.90896881]
[1773158902814,0.84948765,2073.7,2072.6,0.86071559]
[1773158903188,4.82209253,2073.8,2072.6,0.86071559]
[1773158903400,0.84948765,2073.7,2072.6,0.86071559]
[1773158903801,2.05512036,2073.6,2072.7,1.20615622]
[1773158904015,0.84948765,2073.5,2072.7,1.20615622]
[1773158904804,0.84948765,2073.4,2072.3,2.06710462]
[1773158905550,0.84948765,2073.2,2072.2,1.2063982]
[1773158905709,1.20592349,2073.1,2072.1,4.82587925]
[1773158905910,1.20592349,2073.1,2072.2,0.86071559]
[1773158906912,2.05541114,2073.1,2072.2,0.86071559]
[1773158907111,2.05541114,2073.1,2072.9,0.001]
[1773158907306,2.05541114,2073.1,2072.2,0.86071559]
[1773158907533,1.20590464,2073.2,2072.2,0.86071559]
[1773158907729,1.20590464,2073.2,2072.6,0.001]
[1773158908037,4.82346131,2073.3,2072.6,0.001]
[1773158908743,5.67294896,2073.3,2072.6,0.001]
[1773158909813,6.72294896,2073.3,2072.6,0.001]
[1773158910740,4.82346131,2073.3,2072.6,0.86171559]
[1773158911308,4.82346131,2073.3,2072.6,0.001]
[1773158911528,4.82322866,2073.7,2072.6,0.001]
[1773158911529,4.8224286,2073.8,2072.7,0.86071559]
[1773158911725,5.67191625,2073.8,2072.7,0.86071559]
[1773158911940,5.67191625,2073.8,2072.8,0.86071559]
[1773158912137,1.2055258,2073.8,2073.1,0.86071559]
[1773158912961,1.20747569,2073.9,2073.1,0.86071559]
[1773158913631,1.20747569,2073.9,2073.1,0.66399259]
[1773158914058,0.002,2073.9,2073.2,1.20586532]
[1773158914258,0.002,2073.9,2073.2,2.06658091]
[1773158914460,0.002,2073.9,2073.3,0.86071559]
[1773158914628,0.002,2073.9,2073.4,0.86071559]
[1773158914832,0.32918943,2074.1,2073.6,2.33088998]
[1773158915129,0.32918943,2074.1,2073.7,0.86071559]
[1773158915537,0.002,2074.4,2074.0,0.86071559]
[1773158915733,2.61455709,2075.0,2074.3,0.86071559]
[1773158915942,0.002,2075.2,2074.5,3.19160557]
[1773158916167,0.002,2075.2,2074.6,2.06576716]
[1773158916461,0.002,2075.2,2074.4,1.2051381]
[1773158916637,0.002,2075.2,2074.3,2.32920134]
[1773158916964,0.002,2075.2,2074.4,0.86071559]
[1773158917165,1.20660898,2075.4,2074.7,0.86071559]
[1773158917367,1.20660898,2075.4,2074.4,0.86071559]
[1773158917543,1.20660898,2075.4,2074.3,2.32920134]
[1773158917544,1.20659069,2075.4,2074.7,0.86071559]
[1773158917868,1.20659069,2075.4,2074.4,0.86071559]
[1773158918282,1.20659069,2075.4,2074.4,2.06587596]
[1773158918657,2.25859069,2075.4,2074.4,2.06587596]
[1773158919063,1.20659069,2075.4,2074.5,0.86071559]
[1773158919875,0.84948765,2075.1,2073.9,0.86071559]
[1773158920201,0.84948765,2075.1,2073.6,0.86071559]
[1773158920202,0.002,2073.9,2073.6,0.86071559]
[1773158920498,0.002,2073.9,2073.5,1.36529512]
[1773158921065,0.002,2073.9,2073.5,1e-08]
[1773158921598,0.84948765,2073.7,2072.8,1.20707716]
[1773158921772,2.73633098,2073.8,2072.8,1.20707716]
[1773158921773,1.054,2073.8,2072.8,2.06779275]
[1773158922165,1.20557457,2073.7,2072.8,2.06779275]
[1773158922684,1.20557457,2073.7,2072.8,2.06779903]
[1773158922886,1.2074757,2073.9,2072.9,3.19160557]
[1773158923097,0.002,2073.9,2073.0,0.86071559]
[1773158923368,1.2074719,2073.9,2072.8,1.20708344]
[1773158924502,0.002,2073.9,2072.8,0.001]
[1773158924902,0.85148765,2073.9,2072.8,0.001]
[1773158925815,3.18237763,2073.9,2072.8,0.001]
[1773158925989,0.84948765,2073.8,2072.8,0.001]
[1773158926717,2.26357457,2073.7,2072.8,0.001]
[1773158927989,1.20557457,2073.7,2072.8,0.001]
[1773158928191,2.26457457,2073.7,2072.8,0.001]
[1773158929407,0.002,2073.9,2072.8,0.80832104]
[1773158929717,1.20747866,2073.9,2072.9,0.80732104]
[1773158929917,1.20747676,2073.9,2072.9,0.80732104]
[1773158930421,0.002,2073.9,2072.9,0.80732104]
[1773158930619,1.20747041,2073.9,2072.9,0.80732104]
[1773158930818,0.88027448,2073.9,2072.9,1.20599405]
[1773158931622,0.002,2073.9,2073.0,0.81924065]
[1773158931817,0.002,2073.9,2073.0,0.80732104]
[1773158932597,0.87827448,2073.8,2072.8,1.20706009]
[1773158932797,0.87827448,2073.8,2072.8,0.001]
[1773158932798,0.87827448,2073.6,2072.8,0.001]
[1773158932997,3.53646455,2073.7,2072.8,0.001]
[1773158932998,0.87827448,2073.4,2072.8,0.001]
[1773158933808,2.08584905,2073.7,2072.8,0.001]
[1773158934035,1.20757457,2073.7,2072.8,0.80832104]
[1773158935121,0.87827448,2073.6,2072.8,0.001]
[1773158935520,0.87827448,2073.6,2072.8,1.20708804]
[1773158935715,0.87827448,2073.6,2072.8,0.001]
[1773158935931,2.32776533,2073.6,2072.8,0.001]
[1773158936121,0.87827448,2073.5,2072.8,0.001]
[1773158936648,1.94027448,2073.5,2072.8,0.001]
[1773158936818,2.26957457,2073.7,2072.8,1.20706862]
[1773158937020,2.26957457,2073.7,2072.8,0.001]
[1773158937816,1.20757457,2073.7,2072.8,0.001]
[1773158938245,1.20757457,2073.7,2072.8,0.85656496]
[1773158938842,2.08584905,2073.7,2072.8,0.001]
[1773158940049,1.063,2073.6,2072.8,0.001]
[1773158941231,0.87827448,2073.5,2072.8,0.001]
[1773158941459,1.20574901,2073.4,2072.8,0.001]
[1773158942353,1.20563271,2073.6,2072.8,0.80832104]
[1773158943166,1.20761415,2073.7,2072.8,0.80832104]
[1773158943372,0.002,2073.7,2072.9,1.20603984]
[1773158944166,0.88027448,2073.7,2072.8,0.001]
[1773158944343,0.87827448,2073.6,2072.8,0.001]
[1773158944662,2.32776533,2073.4,2072.8,0.001]
[1773158944837,0.87827448,2073.2,2072.8,0.001]
[1773158945641,1.20592349,2073.1,2072.8,0.001]
[1773158947346,1.20569086,2073.5,2072.8,0.80832104]
[1773158947552,2.27069086,2073.5,2072.8,0.80832104]
[1773158947876,0.87827448,2073.3,2072.8,0.001]
[1773158948671,1.065,2073.2,2072.8,0.001]
[1773158949460,2.08396534,2073.5,2072.8,0.001]
[1773158949650,3.67302633,2073.4,2072.8,0.001]
[1773158949984,1.20580716,2073.3,2072.8,0.001]
[1773158950380,1.065,2073.2,2072.8,0.001]
[1773158950681,1.20580716,2073.3,2072.8,0.001]
[1773158951886,0.002,2073.6,2072.8,0.80832104]
[1773158952181,0.87827448,2073.5,2072.8,0.001]
[1773158952353,2.61141401,2073.4,2072.8,0.001]
[1773158952774,0.87827448,2073.5,2072.8,0.001]
[1773158952955,1.068,2073.6,2072.8,0.80832104]
[1773158952956,1.066,2073.4,2072.8,0.80832104]
[1773158954863,1.20580716,2073.3,2072.8,2.01441698]
[1773158955776,2.27175154,2073.4,2072.8,2.01441698]
[1773158956089,1.20575154,2073.4,2072.8,2.01441698]
[1773158957563,2.27273911,2073.5,2072.8,2.01441698]
[1773158958281,2.27273911,2073.5,2073.0,0.001]
[1773158958459,0.002,2073.2,2073.0,0.001]
[1773158958985,0.002,2073.4,2073.0,0.80832104]
[1773158959290,0.002,2073.4,2073.1,1.98787162]
[1773158960798,0.002,2073.6,2073.1,1.98787162]
[1773158961696,0.002,2073.8,2073.2,0.78194813]
[1773158962001,0.002,2074.1,2073.7,0.78194813]
[1773158962297,0.002,2074.4,2073.7,0.78194813]
[1773158962592,0.79185103,2074.3,2073.3,0.78194813]
[1773158962890,1.2071686,2074.4,2073.5,2.32776533]
[1773158963067,2.2751686,2074.4,2073.6,0.78194813]
[1773158963960,2.2751686,2074.4,2073.7,1.20557457]
[1773158964163,1.2071686,2074.4,2073.7,1.20557457]
[1773158964363,1.20716882,2074.4,2073.8,0.78194813]
[1773158965674,0.002,2074.4,2073.8,0.78194813]
[1773158965995,0.002,2074.4,2074.0,1.98734832]
[1773158966407,0.33537199,2074.8,2074.1,0.78194813]
[1773158966563,1.54031236,2074.8,2074.1,0.78194813]
[1773158966769,0.33537199,2074.8,2074.1,0.78194813]
[1773158967193,1.54030854,2074.8,2074.1,0.78194813]
[1773158967492,2.33215957,2074.8,2073.9,1.20541803]
[1773158967892,2.33215957,2074.8,2073.9,1.98736616]
[1773158968098,2.33215957,2074.8,2074.0,0.78194813]
[1773158968299,0.33537199,2074.8,2074.0,0.78194813]
[1773158968513,0.33537199,2074.8,2074.2,0.78194813]
[1773158968672,0.33537199,2074.8,2074.3,0.78194813]
[1773158968871,1.20482209,2075.0,2074.3,0.78194813]
[1773158969079,1.20482209,2075.0,2073.9,1.20541803]
[1773158969080,1.20482209,2075.0,2074.0,0.78194813]
[1773158969280,1.20480761,2075.1,2074.1,0.78194813]
[1773158969571,1.20480761,2075.1,2074.3,0.78194813]
[1773158969774,1.20474713,2075.2,2074.4,0.78194813]
[1773158970075,1.99659816,2075.2,2074.4,0.78194813]
[1773158970274,1.99659816,2075.2,2074.4,1.98706937]
[1773158970785,1.99659816,2075.2,2074.4,1.9871127]
[1773158971181,1.20474713,2075.2,2074.4,1.9871127]
[1773158971602,1.20474713,2075.2,2074.5,0.78194813]
[1773158972190,4.81868988,2075.3,2074.6,1.20505157]
[1773158972597,1.20464511,2075.3,2074.6,1.9869997]
[1773158973187,0.002,2074.8,2074.6,1.9869997]
[1773158973789,0.002,2074.8,2074.6,0.78194813]
[1773158973993,0.002,2074.8,2074.5,1.20506529]
[1773158974405,0.002,2075.1,2074.5,0.78194813]
[1773158974711,0.79385103,2075.4,2074.4,4.82052016]
[1773158974927,0.79185103,2075.3,2074.4,0.78194813]
[1773158975416,0.79185103,2075.3,2074.3,2.33416775]
[1773158975417,0.79185103,2075.3,2074.3,1.20521383]
[1773158975840,0.79185103,2075.2,2074.1,0.78194813]
[1773158976123,0.79185103,2074.9,2073.7,1.20557039]
[1773158976305,1.20505157,2074.6,2073.7,0.78194813]
[1773158978788,0.79185103,2074.5,2073.7,1.98749378]
[1773158981004,1.99701812,2074.5,2073.7,1.98749378]
[1773158982021,0.79185103,2074.4,2073.7,0.78194813]
[1773158982307,0.79185103,2074.4,2073.4,2.32776533]
[1773158982308,0.79185103,2074.4,2073.5,1.20564987]
[1773158982518,0.79185103,2074.4,2073.1,0.78194813]
[1773158982720,0.79185103,2074.8,2074.0,3.10971346]
[1773158982930,0.79185103,2074.8,2073.6,4.65553066]
[1773158982931,0.79185103,2074.8,2073.8,0.78194813]
[1773158983102,1.20499349,2074.7,2073.9,1.98740644]
[1773158983940,1.99684452,2074.7,2073.9,0.78194813]
[1773158984919,0.79185103,2074.6,2073.7,1.20553063]
[1773158985137,0.79185103,2074.6,2073.4,4.82286922]
[1773158985138,0.79185103,2074.4,2073.4,4.82286922]
[1773158985350,0.79185103,2074.4,2073.4,5.60481735]
[1773158985543,0.79185103,2074.4,2074.0,0.001]
[1773158985851,0.79185103,2074.4,2073.4,0.78194813]
[1773158986037,0.79185103,2074.4,2073.8,0.001]
[1773158987352,4.82043865,2074.7,2073.8,0.76088476]
[1773158987353,1.97822643,2074.7,2073.8,0.76088476]
[1773158987551,6.66055761,2074.6,2073.8,0.76088476]
[1773158987769,0.77317486,2074.5,2073.8,0.001]
[1773158988660,0.77317486,2074.5,2073.5,1.20669086]
[1773158988661,0.77317486,2074.3,2073.5,0.001]
[1773158989461,0.80673119,2074.1,2073.5,0.001]
[1773158991282,1.87473119,2074.1,2073.5,0.001]
[1773158991583,5.88829913,2074.6,2073.7,0.74484589]
[1773158991742,0.80673119,2074.5,2073.7,0.74484589]
[1773158993174,5.88829913,2074.6,2073.7,0.74484589]
[1773158993175,4.82029913,2074.6,2073.7,0.74484589]
[1773158993590,2.27305157,2074.7,2073.9,0.74484589]
[1773158994791,3.07978276,2074.7,2073.9,0.74484589]
[1773158995502,2.27305157,2074.7,2074.0,1.95024608]
[1773158997215,1.20505157,2074.7,2074.0,1.95024608]
[1773158997382,1.20505157,2074.7,2073.6,4.82206577]
[1773158997383,0.80673119,2074.6,2073.1,4.29923991]
[1773158997586,0.80673119,2073.7,2073.0,0.001]
[1773158997903,1.068,2073.6,2073.0,0.001]
[1773158999007,0.80673119,2073.6,2073.0,0.001]
[1773158999302,1.068,2073.5,2073.0,0.001]
[1773159000707,1.20534207,2074.1,2073.1,0.74484589]
[1773159001006,2.27434207,2074.1,2073.1,0.74484589]
[1773159001203,3.08107326,2074.1,2073.1,0.74484589]
[1773159001589,2.01189894,2074.4,2073.3,2.32416178]
[1773159001770,1.20516775,2074.4,2073.4,0.74484589]
[1773159001974,1.20516775,2074.4,2073.5,0.74484589]
[1773159002599,1.20516775,2074.4,2073.6,1.20563271]
[1773159004705,0.80673119,2074.3,2073.5,1.95053355]
[1773159005009,0.80673119,2074.3,2073.5,0.74484589]
[1773159005208,0.80673119,2074.3,2073.1,0.74484589]
[1773159005432,1.20516775,2074.4,2073.0,3.53108527]
[1773159005433,0.80673119,2074.1,2073.0,0.001]
[1773159005613,0.80673119,2073.7,2073.0,0.001]
[1773159005785,1.87573119,2073.6,2073.0,0.001]
[1773159006178,1.069,2073.6,2073.0,0.001]
[1773159006382,2.57653715,2073.8,2073.0,1.20697137]
[1773159006587,0.80673119,2073.9,2073.0,1.95181726]
[1773159007303,1.20551644,2073.8,2073.0,1.95181726]
[1773159008613,1.20551644,2073.8,2073.0,0.74584589]
[1773159008820,0.80673119,2073.7,2073.0,0.001]
[1773159009122,1.069,2073.7,2073.0,1.20696871]
[1773159009353,1.20551644,2073.8,2073.0,1.20696871]
[1773159009513,1.20551644,2073.8,2073.1,0.74484589]
[1773159009904,1.20551644,2073.8,2073.0,1.20696871]
[1773159010226,2.01224763,2073.8,2073.0,0.001]
[1773159011419,0.80673119,2073.7,2073.0,0.001]
[1773159012244,1.87573119,2073.7,2073.0,0.001]
[1773159012419,2.27451644,2073.8,2073.0,0.001]
[1773159013355,1.20551644,2073.8,2073.1,0.74484589]
[1773159013528,1.2073271,2074.2,2073.2,0.74484589]
[1773159015422,0.002,2074.2,2073.3,1.20580716]
[1773159015937,0.002,2074.2,2073.4,0.74484589]
[1773159017244,0.002,2074.2,2073.5,0.79307352]
[1773159017817,0.002,2074.2,2073.6,1.20563271]
[1773159018327,0.002,2074.2,2073.6,1.9504786]
[1773159019234,0.002,2074.2,2073.7,0.80593115]
[1773159020470,0.002,2074.2,2073.7,2.01149018]
[1773159020952,0.002,2074.2,2073.7,2.0115027]
[1773159021746,0.002,2074.4,2073.8,0.80593115]
[1773159022649,0.002,2074.4,2073.6,4.82248133]
[1773159022846,0.002,2074.4,2073.5,2.01157523]
[1773159023148,0.8170252,2074.4,2073.3,2.32776821]
[1773159024021,0.8170252,2074.4,2073.4,0.001]
[1773159024242,0.002,2074.0,2073.4,0.001]
[1773159024682,0.002,2074.0,2073.4,0.80693115]
[1773159024859,0.002,2074.0,2073.5,0.82784836]
[1773159025670,0.002,2074.4,2074.0,0.80593115]
[1773159026379,0.002,2074.7,2074.1,0.80593115]
[1773159026552,0.002,2075.0,2074.5,1.20510966]
[1773159026748,0.002,2075.0,2074.5,2.01104081]
[1773159026950,0.002,2075.0,2074.2,4.54380841]
[1773159027368,0.002,2075.0,2074.2,0.80593115]
[1773159027569,0.8170252,2075.0,2074.0,2.3273815]
[1773159027777,0.8170252,2075.0,2074.1,0.04821368]
[1773159027997,0.002,2075.0,2074.2,0.80593115]
[1773159028773,0.002,2075.0,2074.3,1.20522585]
[1773159029653,0.8170252,2075.0,2074.0,1.122]
[1773159029862,0.8170252,2075.0,2074.0,2.32736008]
[1773159030285,0.8170252,2075.0,2074.0,1.122]
[1773159030467,0.8170252,2075.0,2074.0,2.32740003]
[1773159030661,0.8170252,2075.0,2074.1,0.02905193]
[1773159030866,1.20487734,2074.9,2074.2,1.20528396]
[1773159031186,0.02940413,2074.8,2074.0,1.20537871]
[1773159031795,1.20686437,2075.0,2074.2,0.80593115]
[1773159031997,2.02188957,2075.0,2074.0,1.20537871]
[1773159032301,1.2362685,2075.0,2074.1,0.80593115]
[1773159032905,0.03140413,2075.0,2074.3,0.80593115]
[1773159033102,4.82089871,2075.2,2074.6,0.80593115]
[1773159033103,0.002,2075.2,2074.6,0.80593115]
[1773159033271,1.20671625,2075.2,2074.6,0.80593115]
[1773159033606,0.002,2075.2,2074.6,0.80593115]
[1773159034183,1.20670853,2075.2,2074.6,0.80593115]
[1773159034483,0.002,2075.2,2074.6,0.80593115]
[1773159034797,1.20670366,2075.2,2074.6,0.80593115]
[1773159035006,0.002,2075.2,2074.7,2.01092464]
[1773159035974,0.002,2075.4,2075.0,0.80593115]
[1773159036681,0.002,2075.7,2075.3,0.80593115]
[1773159037007,0.002,2075.7,2075.4,1.20458706]
[1773159037372,0.002,2075.7,2075.3,2.01053232]
[1773159038075,0.002,2075.7,2075.3,0.80593115]
[1773159038403,0.002,2075.7,2075.1,1.20472717]
[1773159039311,0.002,2075.2,2075.1,2.01065832]
[1773159039517,0.002,2075.7,2075.2,0.80593115]
[1773159039702,0.002,2075.5,2075.2,0.80593115]
[1773159039910,0.02940413,2076.1,2075.2,0.80593115]
[1773159040223,0.02940413,2076.1,2075.3,1.12]
[1773159040224,1.20423892,2076.0,2075.3,1.12]
[1773159040602,0.02940413,2076.1,2075.3,1.92593115]
[1773159040801,0.002,2076.3,2075.6,2.32416178]
[1773159041003,0.002,2076.5,2076.2,2.32416178]
[1773159041518,0.02940413,2077.0,2076.3,0.80593115]
[1773159041814,0.02940413,2077.0,2076.2,2.32416178]
[1773159041815,2.04789806,2077.4,2076.5,0.80593115]
[1773159042419,2.04789806,2077.4,2076.3,3.13009293]
[1773159042627,0.8150252,2077.3,2076.3,0.80593115]
[1773159042838,0.8150252,2077.3,2076.0,4.6484007]
[1773159042839,0.8150252,2077.1,2076.0,1.12]
[1773159042984,1.20377503,2076.8,2076.0,1.12]
[1773159043192,0.02940413,2076.7,2076.0,1.12]
[1773159043590,0.02940413,2076.7,2076.0,2.32422213]
[1773159043793,1.20377503,2076.8,2076.0,3.13015328]
[1773159044415,1.20377503,2076.8,2076.1,0.80593115]
[1773159045302,1.20377503,2076.8,2076.1,2.01010804]
[1773159045507,1.20377503,2076.8,2076.1,2.01010147]
[1773159045820,0.02940413,2076.7,2076.0,1.12]
[1773159046604,0.84442933,2076.7,2076.0,1.12]